[Event "Norwegian Championship 2022"]
[Site "Kongsvinger, Norway"]
[Date "2022.07.09"]
[Round "2"]
[White "Urkedal, Frode Olav Olsen"]
[Black " Østenstad, Berge"]
[Result "1/2-1/2"]
[Board "5"]
[TimeControl "40/5400+30:1800+30"]
[WhiteTitle "GM"]
[BlackTitle "GM"]
[WhiteFideId "1506102"]
[BlackFideId "1500058"]
[WhiteElo "2555"]
[BlackElo "2451"]

1. e4 {[%clk 01:30:54]} {[%emt 00:00:05]} c5 {[%clk 01:30:16]} {[%emt
00:00:45]} 2. Nf3 {[%clk 01:31:16]} {[%emt 00:00:07]} e6 {[%clk 01:30:43]}
{[%emt 00:00:04]} 3. d4 {[%clk 01:31:39]} {[%emt 00:00:07]} cxd4 {[%clk
01:31:09]} {[%emt 00:00:04]} 4. Nxd4 {[%clk 01:32:04]} {[%emt 00:00:05]} Nc6
{[%clk 01:26:25]} {[%emt 00:05:14]} 5. Nc3 {[%clk 01:32:14]} {[%emt 00:00:20]}
a6 {[%clk 01:26:45]} {[%emt 00:00:10]} 6. Nxc6 {[%clk 01:30:19]} {[%emt
00:02:24]} bxc6 {[%clk 01:26:47]} {[%emt 00:00:28]} 7. Bd3 {[%clk 01:25:19]}
{[%emt 00:05:30]} d5 {[%clk 01:26:03]} {[%emt 00:01:14]} 8. O-O {[%clk
01:24:06]} {[%emt 00:01:43]} Nf6 {[%clk 01:25:07]} {[%emt 00:01:27]} 9. Qf3
{[%clk 01:22:22]} {[%emt 00:02:14]} Be7 {[%clk 01:16:14]} {[%emt 00:09:23]} 10.
Qg3 {[%clk 01:11:31]} {[%emt 00:11:21]} O-O {[%clk 01:15:58]} {[%emt 00:00:47]}
11. Bh6 {[%clk 01:09:40]} {[%emt 00:02:20]} Ne8 {[%clk 01:15:32]} {[%emt
00:00:57]} 12. Bf4 {[%clk 01:09:50]} {[%emt 00:00:19]} a5 {[%clk 01:07:51]}
{[%emt 00:08:12]} 13. Na4 {[%clk 01:04:48]} {[%emt 00:05:32]} Ba6 {[%clk
01:05:53]} {[%emt 00:02:28]} 14. Rfd1 {[%clk 00:54:44]} {[%emt 00:10:33]} Nd6
{[%clk 00:41:32]} {[%emt 00:24:51]} 15. Be5 {[%clk 00:44:10]} {[%emt 00:11:04]}
g6 {[%clk 00:40:38]} {[%emt 00:01:25]} 16. Nc5 {[%clk 00:35:03]} {[%emt
00:09:37]} Bxd3 {[%clk 00:36:58]} {[%emt 00:04:10]} 17. cxd3 {[%clk 00:32:32]}
{[%emt 00:03:00]} Ne8 {[%clk 00:23:30]} {[%emt 00:13:55]} 18. Rac1 {[%clk
00:26:28]} {[%emt 00:06:37]} Nf6 {[%clk 00:17:28]} {[%emt 00:06:31]} 19. Na4
{[%clk 00:16:54]} {[%emt 00:10:04]} Rc8 {[%clk 00:15:36]} {[%emt 00:02:22]} 20.
h3 {[%clk 00:15:07]} {[%emt 00:02:17]} c5 {[%clk 00:13:30]} {[%emt 00:02:36]}
21. b3 {[%clk 00:13:33]} {[%emt 00:02:04]} Nd7 {[%clk 00:12:35]} {[%emt
00:01:25]} 22. Bb2 {[%clk 00:11:34]} {[%emt 00:02:30]} Rc6 {[%clk 00:09:52]}
{[%emt 00:03:12]} 23. Ba3 {[%clk 00:08:21]} {[%emt 00:03:43]} Bd6 {[%clk
00:09:07]} {[%emt 00:01:15]} 24. Qf3 {[%clk 00:07:30]} {[%emt 00:01:20]} d4
{[%clk 00:08:35]} {[%emt 00:01:02]} 25. Rc2 {[%clk 00:06:50]} {[%emt 00:01:10]}
Qe7 {[%clk 00:08:01]} {[%emt 00:01:03]} 26. Nb2 {[%clk 00:06:45]} {[%emt
00:00:37]} Rfc8 {[%clk 00:08:04]} {[%emt 00:00:28]} 27. Qe2 {[%clk 00:05:52]}
{[%emt 00:01:22]} Qf6 {[%clk 00:05:28]} {[%emt 00:03:06]} 28. Nc4 {[%clk
00:05:09]} {[%emt 00:01:14]} Bc7 {[%clk 00:05:47]} {[%emt 00:00:10]} 29. Bc1
{[%clk 00:05:09]} {[%emt 00:00:30]} e5 {[%clk 00:05:34]} {[%emt 00:00:43]} 30.
Bd2 {[%clk 00:05:27]} {[%emt 00:00:12]} Ra8 {[%clk 00:05:50]} {[%emt 00:00:14]}
31. Nb2 {[%clk 00:04:25]} {[%emt 00:01:32]} Nf8 {[%clk 00:05:25]} {[%emt
00:00:55]} 32. Rdc1 {[%clk 00:04:34]} {[%emt 00:00:21]} Ne6 {[%clk 00:05:39]}
{[%emt 00:00:16]} 33. Rc4 {[%clk 00:04:53]} {[%emt 00:00:12]} h5 {[%clk
00:05:19]} {[%emt 00:00:49]} 34. Ra4 {[%clk 00:03:50]} {[%emt 00:01:33]} Rca6
{[%clk 00:04:50]} {[%emt 00:01:00]} 35. Rc2 {[%clk 00:03:21]} {[%emt 00:00:59]}
Kg7 {[%clk 00:04:34]} {[%emt 00:00:46]} 36. Nc4 {[%clk 00:03:28]} {[%emt
00:00:23]} Kg8 {[%clk 00:04:07]} {[%emt 00:00:58]} 37. Bc1 {[%clk 00:02:41]}
{[%emt 00:01:17]} Kg7 {[%clk 00:03:40]} {[%emt 00:00:56]} 38. Qd1 {[%clk
00:02:34]} {[%emt 00:00:37]} Kg8 {[%clk 00:03:22]} {[%emt 00:00:48]} 39. Nd2
{[%clk 00:02:30]} {[%emt 00:00:33]} Bd6 {[%clk 00:02:30]} {[%emt 00:01:21]} 40.
Nf3 {[%clk 00:30:51]} {[%emt 00:02:10]} Kg7 {[%clk 00:32:03]} {[%emt 00:00:57]}
41. h4 {[%clk 00:30:38]} {[%emt 00:00:43]} Qe7 {[%clk 00:30:39]} {[%emt
00:01:52]} 42. Qd2 {[%clk 00:30:23]} {[%emt 00:00:47]} Kg8 {[%clk 00:29:26]}
{[%emt 00:01:43]} 43. Qh6 {[%clk 00:26:58]} {[%emt 00:03:55]} Qf8 {[%clk
00:26:48]} {[%emt 00:03:08]} 44. Qd2 {[%clk 00:25:59]} {[%emt 00:01:30]} Qe7
{[%clk 00:27:03]} {[%emt 00:00:14]} 45. Qe1 {[%clk 00:25:24]} {[%emt 00:01:05]}
Qd8 {[%clk 00:26:35]} {[%emt 00:00:58]} 46. Bd2 {[%clk 00:22:01]} {[%emt
00:03:53]} Kg7 {[%clk 00:23:00]} {[%emt 00:04:06]} 47. Bc1 {[%clk 00:21:56]}
{[%emt 00:00:35]} Kg8 {[%clk 00:23:04]} {[%emt 00:00:26]} 48. Re2 {[%clk
00:21:55]} {[%emt 00:00:30]} Kg7 {[%clk 00:22:30]} {[%emt 00:01:03]} 49. g3
{[%clk 00:19:19]} {[%emt 00:03:06]} Nf8 {[%clk 00:16:38]} {[%emt 00:06:22]} 50.
Qd2 {[%clk 00:18:28]} {[%emt 00:01:22]} Kg8 {[%clk 00:15:58]} {[%emt 00:01:10]}
51. Qe1 {[%clk 00:09:00]} {[%emt 00:09:58]} Nd7 {[%clk 00:14:44]} {[%emt
00:01:44]} 52. Bd2 {[%clk 00:09:29]} {[%emt 00:00:01]} Qb6 {[%clk 00:14:05]}
{[%emt 00:01:09]} 53. Qc1 {[%clk 00:04:36]} {[%emt 00:05:23]} Qb5 {[%clk
00:12:34]} {[%emt 00:02:00]} 54. Qc4 {[%clk 00:04:51]} {[%emt 00:00:16]} Qb7
{[%clk 00:05:39]} {[%emt 00:07:25]} 55. Ng5 {[%clk 00:04:12]} {[%emt 00:01:09]}
Nb6 {[%clk 00:06:00]} {[%emt 00:00:09]} 56. Qb5 {[%clk 00:04:39]} {[%emt
00:00:03]} Qa7 {[%clk 00:06:10]} {[%emt 00:00:19]} 57. f4 {[%clk 00:05:02]}
{[%emt 00:00:07]} Nxa4 {[%clk 00:06:24]} {[%emt 00:00:17]} 58. Qxa4 {[%clk
00:05:29]} {[%emt 00:00:04]} exf4 {[%clk 00:05:09]} {[%emt 00:01:45]} 59. gxf4
{[%clk 00:05:37]} {[%emt 00:00:21]} Be7 {[%clk 00:04:23]} {[%emt 00:01:16]} 60.
f5 {[%clk 00:05:58]} {[%emt 00:00:09]} Qc7 {[%clk 00:03:14]} {[%emt 00:01:39]}
61. Rg2 {[%clk 00:06:03]} {[%emt 00:00:25]} c4 {[%clk 00:03:12]} {[%emt
00:00:32]} 62. bxc4 {[%clk 00:06:04]} {[%emt 00:00:29]} Rb8 {[%clk 00:03:03]}
{[%emt 00:00:39]} 63. Nf3 {[%clk 00:05:30]} {[%emt 00:01:04]} Rb1+ {[%clk
00:02:21]} {[%emt 00:01:12]} 64. Kf2 {[%clk 00:05:58]} {[%emt 00:00:01]} Qc6
{[%clk 00:02:06]} {[%emt 00:00:44]} 65. Qxc6 {[%clk 00:05:19]} {[%emt
00:01:10]} Rxc6 {[%clk 00:02:33]} {[%emt 00:00:03]} 66. fxg6 {[%clk 00:04:13]}
{[%emt 00:01:36]} Rxg6 {[%clk 00:02:25]} {[%emt 00:00:38]} 67. Rxg6+ {[%clk
00:04:34]} {[%emt 00:00:09]} fxg6 {[%clk 00:02:49]} {[%emt 00:00:06]} 68. Bxa5
{[%clk 00:04:54]} {[%emt 00:00:10]} Rb2+ {[%clk 00:02:50]} {[%emt 00:00:29]} 69.
Kg3 {[%clk 00:05:13]} {[%emt 00:00:10]} Rxa2 {[%clk 00:03:16]} {[%emt
00:00:04]} 70. Bb6 {[%clk 00:05:06]} {[%emt 00:00:36]} Ra3 {[%clk 00:03:32]}
{[%emt 00:00:13]} 71. Bxd4 {[%clk 00:05:06]} {[%emt 00:00:31]} Rxd3 {[%clk
00:03:50]} {[%emt 00:00:12]} 72. Kf4 {[%clk 00:05:13]} {[%emt 00:00:23]} Bxh4
{[%clk 00:03:15]} {[%emt 00:01:06]} 73. Nxh4 {[%clk 00:05:34]} {[%emt
00:00:08]} Rxd4 {[%clk 00:03:41]} {[%emt 00:00:04]} 74. Nxg6 {[%clk 00:05:52]}
{[%emt 00:00:11]} Rxc4 {[%clk 00:03:13]} {[%emt 00:00:58]} 75. Kg5 {[%clk
00:05:52]} {[%emt 00:00:29]} Rxe4 {[%clk 00:03:36]} {[%emt 00:00:08]} 76. Kxh5
{[%clk 00:06:11]} {[%emt 00:00:11]} Kg7 {[%clk 00:03:54]} {[%emt 00:00:11]} 77.
Kg5 {[%clk 00:06:33]} {[%emt 00:00:07]} Re1 {[%clk 00:04:08]} {[%emt 00:00:16]}
78. Kf5 {[%clk 00:06:21]} {[%emt 00:00:43]} Ra1 {[%clk 00:04:14]} {[%emt
00:00:25]} 79. Ne5 {[%clk 00:06:36]} {[%emt 00:00:15]} Ra5 {[%clk 00:03:58]}
{[%emt 00:00:47]} 80. Ke6 {[%clk 00:06:52]} {[%emt 00:00:13]} Rxe5+ {[%clk
00:04:20]} {[%emt 00:00:09]} 81. Kxe5 {[%emt 00:00:05]} 1/2-1/2

[Event "Norwegian Championship 2022"]
[Site "Kongsvinger, Norway"]
[Date "2022.07.09"]
[Round "2"]
[White "Kaasen, Tor Fredrik"]
[Black "Sjøberg, Isak"]
[Result "1/2-1/2"]
[Board "6"]
[TimeControl "40/5400+30:1800+30"]
[WhiteTitle "IM"]
[BlackTitle "FM"]
[WhiteFideId "1516647"]
[BlackFideId "1521640"]
[WhiteElo "2433"]
[BlackElo "2308"]

1. d4 {[%clk 01:30:53]} {[%emt 00:00:06]} Nf6 {[%clk 01:30:56]} {[%emt
00:00:05]} 2. c4 {[%clk 01:30:59]} {[%emt 00:00:22]} e6 {[%clk 01:31:23]}
{[%emt 00:00:05]} 3. Nf3 {[%clk 01:30:34]} {[%emt 00:00:55]} c5 {[%clk
01:31:48]} {[%emt 00:00:05]} 4. d5 {[%clk 01:30:29]} {[%emt 00:00:35]} b5
{[%clk 01:32:14]} {[%emt 00:00:05]} 5. dxe6 {[%clk 01:23:47]} {[%emt 00:07:12]}
fxe6 {[%clk 01:32:38]} {[%emt 00:00:06]} 6. cxb5 {[%clk 01:24:04]} {[%emt
00:00:13]} d5 {[%clk 01:32:58]} {[%emt 00:00:11]} 7. e3 {[%clk 01:23:08]}
{[%emt 00:01:25]} Bd6 {[%clk 01:33:02]} {[%emt 00:00:26]} 8. Be2 {[%clk
01:22:15]} {[%emt 00:01:22]} Bb7 {[%clk 01:27:21]} {[%emt 00:06:11]} 9. Nbd2
{[%clk 01:18:05]} {[%emt 00:04:39]} Nbd7 {[%clk 01:16:36]} {[%emt 00:11:16]} 10.
e4 {[%clk 01:11:30]} {[%emt 00:07:05]} dxe4 {[%clk 00:54:24]} {[%emt 00:22:43]}
11. Nc4 {[%clk 01:10:12]} {[%emt 00:01:48]} Bc7 {[%clk 00:52:48]} {[%emt
00:02:06]} 12. Nfd2 {[%clk 01:06:39]} {[%emt 00:04:03]} O-O {[%clk 00:44:54]}
{[%emt 00:08:24]} 13. O-O {[%clk 01:03:04]} {[%emt 00:04:04]} Nb6 {[%clk
00:34:21]} {[%emt 00:11:05]} 14. Nb3 {[%clk 00:54:00]} {[%emt 00:09:33]} Bd5
{[%clk 00:32:26]} {[%emt 00:02:26]} 15. Ne3 {[%clk 00:48:31]} {[%emt 00:05:58]}
Qd6 {[%clk 00:29:23]} {[%emt 00:03:34]} 16. g3 {[%clk 00:45:27]} {[%emt
00:03:33]} Nfd7 {[%clk 00:28:54]} {[%emt 00:01:00]} 17. Qc2 {[%clk 00:41:13]}
{[%emt 00:04:42]} Rac8 {[%clk 00:26:59]} {[%emt 00:02:27]} 18. Nd2 {[%clk
00:36:37]} {[%emt 00:05:04]} Nf6 {[%clk 00:24:58]} {[%emt 00:02:34]} 19. a4
{[%clk 00:36:10]} {[%emt 00:00:57]} Ba8 {[%clk 00:21:47]} {[%emt 00:03:40]} 20.
Ndc4 {[%clk 00:29:11]} {[%emt 00:07:30]} Qe7 {[%clk 00:22:13]} {[%emt
00:00:05]} 21. a5 {[%clk 00:23:08]} {[%emt 00:06:33]} Nbd5 {[%clk 00:22:37]}
{[%emt 00:00:06]} 22. Bd2 {[%clk 00:23:24]} {[%emt 00:00:14]} Nd7 {[%clk
00:21:08]} {[%emt 00:01:58]} 23. Bg4 {[%clk 00:17:17]} {[%emt 00:06:36]} Rb8
{[%clk 00:15:49]} {[%emt 00:05:50]} 24. b6 {[%clk 00:11:14]} {[%emt 00:06:33]}
axb6 {[%clk 00:15:39]} {[%emt 00:00:40]} 25. axb6 {[%clk 00:11:39]} {[%emt
00:00:05]} N7xb6 {[%clk 00:15:44]} {[%emt 00:00:24]} 26. Ra7 {[%clk 00:09:02]}
{[%emt 00:03:07]} Qf6 {[%clk 00:09:45]} {[%emt 00:06:29]} 27. Qxe4 {[%clk
00:05:00]} {[%emt 00:04:32]} Rbe8 {[%clk 00:08:04]} {[%emt 00:02:12]} 28. Nxb6
{[%clk 00:02:40]} {[%emt 00:02:50]} Nxb6 {[%clk 00:04:25]} {[%emt 00:04:09]} 29.
Qc2 {[%clk 00:03:06]} {[%emt 00:00:05]} Be5 {[%clk 00:04:23]} {[%emt 00:00:32]}
30. Ra6 {[%clk 00:02:36]} {[%emt 00:00:59]} Nd5 {[%clk 00:03:58]} {[%emt
00:00:55]} 31. Nxd5 {[%clk 00:00:45]} {[%emt 00:02:22]} Bxd5 {[%clk 00:04:24]}
{[%emt 00:00:04]} 32. Be3 {[%clk 00:01:05]} {[%emt 00:00:10]} Bxb2 {[%clk
00:02:09]} {[%emt 00:02:45]} 33. Qxc5 {[%emt 00:01:06]} Rc8 {[%clk 00:01:50]}
34. Qb6 {[%clk 00:01:05]} {[%emt 00:00:43]} Rc6 {[%clk 00:01:57]} {[%emt
00:00:22]} 35. Qa7 {[%clk 00:01:16]} {[%emt 00:00:19]} Rxa6 {[%clk 00:02:13]}
{[%emt 00:00:15]} 36. Qxa6 {[%clk 00:01:42]} {[%emt 00:00:04]} Qg6 {[%clk
00:01:54]} {[%emt 00:00:49]} 37. Qa4 {[%clk 00:00:47]} {[%emt 00:01:25]} Bf6
{[%clk 00:01:23]} {[%emt 00:01:01]} 38. Bh3 {[%clk 00:00:57]} {[%emt 00:00:19]}
Qh5 {[%clk 00:01:28]} {[%emt 00:00:25]} 39. Qg4 {[%clk 00:00:48]} {[%emt
00:00:39]} Qxg4 {[%clk 00:01:36]} {[%emt 00:00:23]} 40. Bxg4 {[%clk 00:31:14]}
{[%emt 00:00:05]} Ra8 {[%clk 00:31:41]} {[%emt 00:00:24]} 41. Rc1 {[%clk
00:27:09]} {[%emt 00:04:34]} Kf7 {[%emt 00:07:30]} 42. h4 {[%clk 00:24:27]} Be5
{[%clk 00:26:39]} {[%emt 00:01:45]} 43. Bh3 {[%clk 00:22:54]} {[%emt 00:02:02]}
Ra3 {[%clk 00:23:45]} {[%emt 00:03:25]} 44. Bc5 {[%clk 00:21:48]} {[%emt
00:01:36]} Ra5 {[%clk 00:22:56]} {[%emt 00:01:17]} 45. Bg2 {[%clk 00:19:29]}
{[%emt 00:02:50]} Kf6 {[%clk 00:17:22]} {[%emt 00:06:05]} 46. Be3 {[%clk
00:19:32]} {[%emt 00:00:27]} h6 {[%clk 00:16:24]} {[%emt 00:01:29]} 47. Rc5
{[%clk 00:17:35]} {[%emt 00:02:27]} Rxc5 {[%clk 00:14:02]} {[%emt 00:02:52]} 48.
Bxc5 {[%clk 00:17:59]} {[%emt 00:00:06]} Bxg2 {[%clk 00:13:37]} {[%emt
00:00:55]} 49. Kxg2 {[%clk 00:18:23]} {[%emt 00:00:05]} h5 {[%clk 00:13:50]}
{[%emt 00:00:17]} 50. Kf3 {[%clk 00:17:52]} {[%emt 00:01:01]} Kf5 {[%clk
00:13:58]} {[%emt 00:00:21]} 51. Be7 {[%clk 00:18:12]} {[%emt 00:00:12]} Bd4
{[%clk 00:13:29]} {[%emt 00:00:59]} 52. Bg5 {[%clk 00:17:56]} {[%emt 00:00:45]}
e5 {[%clk 00:13:27]} {[%emt 00:00:32]} 53. Bd2 {[%clk 00:17:46]} {[%emt
00:00:40]} Bc5 {[%clk 00:12:15]} {[%emt 00:01:41]} 54. Bg5 {[%clk 00:17:54]}
{[%emt 00:00:23]} 1/2-1/2

[Event "Norwegian Championship 2022"]
[Site "Kongsvinger, Norway"]
[Date "2022.07.09"]
[Round "2"]
[White "Stanford, Maxim Barth"]
[Black "Vestby-Ellingsen, Mads"]
[Result "0-1"]
[Board "7"]
[TimeControl "40/5400+30:1800+30"]
[WhiteTitle "IM"]
[BlackTitle "IM"]
[WhiteFideId "408280"]
[BlackFideId "1520857"]
[WhiteElo "2308"]
[BlackElo "2351"]

1. c4 {[%clk 01:30:45]} {[%emt 00:00:14]} Nf6 {[%clk 01:30:36]} {[%emt
00:00:23]} 2. Nf3 {[%clk 01:30:53]} {[%emt 00:00:23]} e6 {[%clk 01:30:44]}
{[%emt 00:00:21]} 3. g3 {[%clk 01:31:10]} {[%emt 00:00:13]} d5 {[%clk
01:30:54]} {[%emt 00:00:19]} 4. Bg2 {[%clk 01:31:35]} {[%emt 00:00:06]} Be7
{[%clk 01:31:06]} {[%emt 00:00:18]} 5. O-O {[%clk 01:31:36]} {[%emt 00:00:31]}
O-O {[%clk 01:31:19]} {[%emt 00:00:16]} 6. d4 {[%clk 01:31:55]} {[%emt
00:00:11]} dxc4 {[%clk 01:31:26]} {[%emt 00:00:23]} 7. Qc2 {[%clk 01:32:04]}
{[%emt 00:00:22]} a6 {[%clk 01:31:25]} {[%emt 00:00:31]} 8. Qxc4 {[%clk
01:29:29]} {[%emt 00:03:06]} b5 {[%clk 01:31:29]} {[%emt 00:00:25]} 9. Qc2
{[%clk 01:29:54]} {[%emt 00:00:05]} Bb7 {[%clk 01:31:44]} {[%emt 00:00:15]} 10.
Bg5 {[%clk 01:28:20]} {[%emt 00:02:04]} Nbd7 {[%clk 01:31:24]} {[%emt
00:00:49]} 11. Bxf6 {[%clk 01:26:28]} {[%emt 00:02:23]} Nxf6 {[%clk 01:31:36]}
{[%emt 00:00:17]} 12. Nbd2 {[%clk 01:25:41]} {[%emt 00:01:18]} Rc8 {[%clk
01:31:29]} {[%emt 00:00:36]} 13. Nb3 {[%clk 01:24:59]} {[%emt 00:01:13]} c5
{[%clk 01:30:43]} {[%emt 00:01:15]} 14. dxc5 {[%clk 01:24:25]} {[%emt
00:01:05]} Ne4 {[%clk 01:30:37]} {[%emt 00:00:35]} 15. Rad1 {[%clk 01:18:39]}
{[%emt 00:06:18]} Qc7 {[%clk 01:25:35]} {[%emt 00:05:31]} 16. c6 {[%clk
00:50:31]} {[%emt 00:28:39]} Qxc6 {[%clk 01:23:00]} {[%emt 00:03:04]} 17. Qxc6
{[%clk 00:50:28]} {[%emt 00:00:34]} Bxc6 {[%clk 01:23:17]} {[%emt 00:00:12]} 18.
Ne5 {[%clk 00:49:43]} {[%emt 00:01:15]} Bd5 {[%clk 01:23:32]} {[%emt 00:00:15]}
19. Nd7 {[%clk 00:46:55]} {[%emt 00:03:19]} Rfe8 {[%clk 01:23:47]} {[%emt
00:00:14]} 20. Nb6 {[%clk 00:46:13]} {[%emt 00:01:13]} Rc2 {[%clk 01:23:57]}
{[%emt 00:00:19]} 21. Nxd5 {[%clk 00:44:28]} {[%emt 00:02:17]} exd5 {[%clk
01:24:14]} {[%emt 00:00:12]} 22. Rxd5 {[%clk 00:44:27]} {[%emt 00:00:32]} Bf8
{[%clk 01:24:18]} {[%emt 00:00:25]} 23. Rc1 {[%clk 00:20:49]} {[%emt 00:24:09]}
Rxb2 {[%clk 00:56:27]} {[%emt 00:28:20]} 24. Bxe4 {[%clk 00:15:49]} {[%emt
00:05:30]} Rxe4 {[%clk 00:56:47]} {[%emt 00:00:09]} 25. Rc8 {[%clk 00:13:17]}
{[%emt 00:03:03]} g6 {[%clk 00:34:33]} {[%emt 00:22:44]} 26. Rdd8 {[%clk
00:07:16]} {[%emt 00:06:32]} Kg7 {[%clk 00:32:26]} {[%emt 00:02:36]} 27. Rxf8
{[%clk 00:05:59]} {[%emt 00:01:47]} Rexe2 {[%clk 00:32:29]} {[%emt 00:00:26]}
28. Rg8+ {[%clk 00:02:51]} {[%emt 00:03:39]} Kh6 {[%clk 00:32:17]} {[%emt
00:00:41]} 29. Nc1 {[%clk 00:00:51]} {[%emt 00:02:31]} Rxf2 {[%clk 00:31:46]}
{[%emt 00:00:59]} 30. Nd3 {[%clk 00:01:06]} {[%emt 00:00:17]} Rg2+ {[%clk
00:32:06]} {[%emt 00:00:09]} 31. Kf1 {[%clk 00:01:32]} {[%emt 00:00:05]} Rxa2
{[%clk 00:31:44]} {[%emt 00:00:51]} 32. Ne5 {[%clk 00:01:21]} {[%emt 00:00:43]}
Raf2+ {[%clk 00:14:44]} {[%emt 00:17:29]} 33. Ke1 {[%clk 00:01:50]} {[%emt
00:00:01]} Re2+ {[%clk 00:14:59]} {[%emt 00:00:15]} 34. Kf1 {[%clk 00:02:19]}
Rgf2+ {[%clk 00:15:17]} {[%emt 00:00:12]} 35. Kg1 {[%clk 00:02:44]} {[%emt
00:00:05]} Rf5 {[%clk 00:15:31]} {[%emt 00:00:16]} 36. Nd3 {[%clk 00:01:56]}
{[%emt 00:01:19]} Rd5 {[%clk 00:14:17]} {[%emt 00:01:44]} 37. Rgd8 {[%clk
00:02:01]} {[%emt 00:00:25]} Rxd8 {[%clk 00:13:33]} {[%emt 00:01:13]} 38. Rxd8
{[%clk 00:02:28]} {[%emt 00:00:04]} Rd2 {[%clk 00:13:43]} {[%emt 00:00:20]} 39.
Rd5 {[%clk 00:02:24]} {[%emt 00:00:35]} f5 {[%clk 00:12:24]} {[%emt 00:01:48]}
40. h3 {[%clk 00:31:05]} {[%emt 00:01:49]} a5 {[%clk 00:38:14]} {[%emt
00:04:41]} 41. Nf4 {[%clk 00:25:29]} {[%emt 00:06:07]} Rxd5 {[%clk 00:28:42]}
{[%emt 00:10:01]} 42. Nxd5 {[%clk 00:25:54]} {[%emt 00:00:05]} a4 {[%clk
00:26:42]} {[%emt 00:02:30]} 43. Kf2 {[%clk 00:25:58]} {[%emt 00:00:27]} a3
{[%clk 00:26:50]} {[%emt 00:00:22]} 44. Nb4 {[%clk 00:26:24]} {[%emt 00:00:04]}
Kg5 {[%clk 00:25:05]} {[%emt 00:02:13]} 45. Ke3 {[%clk 00:25:27]} {[%emt
00:01:28]} f4+ {[%clk 00:19:23]} {[%emt 00:06:11]} 46. gxf4+ {[%clk 00:25:37]}
{[%emt 00:00:21]} Kh4 {[%clk 00:19:45]} {[%emt 00:00:08]} 47. Kd4 {[%clk
00:25:36]} {[%emt 00:00:32]} Kxh3 {[%clk 00:20:01]} {[%emt 00:00:13]} 48. Kc3
{[%clk 00:25:27]} {[%emt 00:00:39]} Kg4 {[%clk 00:14:56]} {[%emt 00:05:35]} 49.
Nd3 {[%clk 00:24:48]} {[%emt 00:01:09]} h5 {[%clk 00:14:59]} {[%emt 00:00:25]}
50. Kb3 {[%clk 00:25:10]} {[%emt 00:00:09]} h4 {[%clk 00:14:40]} {[%emt
00:00:49]} 51. Ne5+ {[%clk 00:25:34]} {[%emt 00:00:06]} Kf5 {[%clk 00:15:00]}
{[%emt 00:00:10]} 52. Kxa3 {[%clk 00:25:49]} {[%emt 00:00:16]} h3 {[%clk
00:15:13]} {[%emt 00:00:16]} 53. Nd3 {[%clk 00:25:57]} {[%emt 00:00:22]} h2
{[%clk 00:15:27]} {[%emt 00:00:16]} 54. Nf2 {[%clk 00:26:06]} {[%emt 00:00:21]}
Kxf4 {[%clk 00:15:47]} {[%emt 00:00:10]} 0-1

[Event "Norwegian Championship 2022"]
[Site "Kongsvinger, Norway"]
[Date "2022.07.10"]
[Round "3"]
[White "Agdestein, Simen"]
[Black "Hammer, Jon Ludvig"]
[Result "1-0"]
[Board "1"]
[TimeControl "40/5400+30:1800+30"]
[WhiteTitle "GM"]
[BlackTitle "GM"]
[WhiteFideId "1500015"]
[BlackFideId "1503707"]
[WhiteElo "2559"]
[BlackElo "2638"]

1. c4 {[%clk 01:30:55]} {[%emt 00:00:04]} e5 {[%clk 01:30:49]} {[%emt
00:00:11]} 2. Nc3 {[%clk 01:31:21]} {[%emt 00:00:04]} Nf6 {[%clk 01:31:03]}
{[%emt 00:00:16]} 3. Nf3 {[%clk 01:31:41]} {[%emt 00:00:09]} Nc6 {[%clk
01:31:22]} {[%emt 00:00:12]} 4. g3 {[%clk 01:32:08]} {[%emt 00:00:03]} Bb4
{[%clk 01:31:23]} {[%emt 00:00:29]} 5. Bg2 {[%clk 01:32:26]} {[%emt 00:00:12]}
Bxc3 {[%clk 01:30:24]} {[%emt 00:01:29]} 6. bxc3 {[%clk 01:32:40]} {[%emt
00:00:16]} O-O {[%clk 01:30:38]} {[%emt 00:00:16]} 7. O-O {[%clk 01:32:01]}
{[%emt 00:01:09]} e4 {[%clk 01:28:52]} {[%emt 00:02:16]} 8. Ng5 {[%clk
01:29:34]} {[%emt 00:02:57]} Re8 {[%clk 01:29:08]} {[%emt 00:00:14]} 9. f3
{[%clk 01:29:31]} {[%emt 00:00:33]} exf3 {[%clk 01:29:31]} {[%emt 00:00:08]} 10.
Nxf3 {[%clk 01:27:45]} {[%emt 00:02:16]} Qe7 {[%clk 01:29:54]} {[%emt
00:00:07]} 11. e3 {[%clk 01:23:38]} {[%emt 00:04:37]} Ne5 {[%clk 01:29:34]}
{[%emt 00:00:50]} 12. Nxe5 {[%clk 01:16:56]} {[%emt 00:07:12]} Qxe5 {[%clk
01:29:16]} {[%emt 00:00:47]} 13. Rb1 {[%clk 01:13:00]} {[%emt 00:04:27]} c6
{[%clk 01:17:38]} {[%emt 00:12:09]} 14. Rf4 {[%clk 00:49:49]} {[%emt 00:23:40]}
d6 {[%clk 01:12:35]} {[%emt 00:05:33]} 15. Qf1 {[%clk 00:38:20]} {[%emt
00:11:59]} Qe7 {[%clk 01:13:03]} {[%emt 00:00:02]} 16. a4 {[%clk 00:34:31]}
{[%emt 00:04:19]} Ng4 {[%clk 00:56:48]} {[%emt 00:16:44]} 17. a5 {[%clk
00:32:45]} {[%emt 00:02:16]} a6 {[%clk 00:57:04]} {[%emt 00:00:15]} 18. h3
{[%clk 00:28:33]} {[%emt 00:04:41]} Nh6 {[%clk 00:44:24]} {[%emt 00:13:11]} 19.
e4 {[%clk 00:26:44]} {[%emt 00:02:19]} Qg5 {[%clk 00:41:43]} {[%emt 00:03:11]}
20. Rf3 {[%clk 00:15:33]} {[%emt 00:11:41]} Qxa5 {[%clk 00:32:16]} {[%emt
00:09:57]} 21. d4 {[%clk 00:14:57]} {[%emt 00:01:05]} f5 {[%clk 00:30:44]}
{[%emt 00:02:02]} 22. Bxh6 {[%clk 00:12:58]} {[%emt 00:02:29]} fxe4 {[%clk
00:28:21]} {[%emt 00:02:53]} 23. Rf7 {[%clk 00:09:50]} {[%emt 00:03:37]} gxh6
{[%clk 00:27:41]} {[%emt 00:01:10]} 24. Bxe4 {[%clk 00:09:45]} {[%emt
00:00:36]} Qg5 {[%clk 00:27:14]} {[%emt 00:00:57]} 25. Kh2 {[%clk 00:06:39]}
{[%emt 00:03:36]} h5 {[%clk 00:16:44]} {[%emt 00:11:01]} 26. h4 {[%clk
00:06:22]} {[%emt 00:00:46]} Qh6 {[%clk 00:17:10]} {[%emt 00:00:03]} 27. Bxh7+
{[%clk 00:06:07]} {[%emt 00:00:45]} Kh8 {[%clk 00:17:39]} {[%emt 00:00:01]} 28.
Bd3 {[%clk 00:05:38]} {[%emt 00:00:59]} Kg8 {[%clk 00:15:56]} {[%emt 00:02:13]}
29. Bh7+ {[%clk 00:06:05]} {[%emt 00:00:03]} Kh8 {[%clk 00:16:21]} {[%emt
00:00:05]} 30. Bd3 {[%clk 00:06:32]} {[%emt 00:00:03]} Kg8 {[%clk 00:16:46]}
{[%emt 00:00:05]} 31. Rf6 {[%clk 00:05:35]} {[%emt 00:01:27]} Qd2+ {[%clk
00:17:06]} {[%emt 00:00:10]} 32. Kh1 {[%clk 00:05:52]} {[%emt 00:00:14]} 1-0